fUSD/lending_fUSD_20251220
["ID","MTS","AMOUNT","RATE_DAILY","PERIOD"]
[399277705,1766232644037,-1000.0,0.000158,2]
[399277706,1766232644049,-10652.17309792,0.00015847,2]
[399277707,1766232644059,-500.0,0.0001589,2]
[399277708,1766232644069,-11046.30350255,0.00015902,2]
[399277709,1766232644079,-2949.435704,0.00015929,2]
[399277710,1766232644089,-11519.1510734,0.00015929,2]
[399277711,1766232644100,-7609.2693961,0.00015929,2]
[399277712,1766232644109,-572304.2508107,0.00015929,2]
[399277713,1766232644119,-151.0,0.00015929,2]
[399277714,1766232644129,-151.0,0.00015929,2]
[399277715,1766232644141,-268.048371,0.00015929,2]
[399277716,1766232644151,-151.0,0.00015929,2]
[399277717,1766232644160,-195.35103,0.00015929,2]
[399277718,1766232644169,-151.0,0.00015929,2]
[399277719,1766232644178,-151.0,0.00015929,2]
[399277720,1766232644187,-151.0,0.00015929,2]
[399277721,1766232644196,-1000.0,0.00015956,2]
[399277722,1766232644208,-4180.81569567,0.00015957,2]
[399277723,1766232644218,-500.0,0.00015973,2]
[399277724,1766232644229,-162.03877535,0.00015973,2]
[399277725,1766232644237,-198.63978603,0.00015973,2]
[399277726,1766232644246,-500.0,0.00015973,2]
[399277727,1766232644256,-500.0,0.00015973,2]
[399277728,1766232644265,-500.0,0.00015973,2]
[399277729,1766232644274,-159.43095819,0.00015973,2]
[399277730,1766232644282,-187.8388697,0.00015985,2]
[399277731,1766232644292,-24566.6899018,0.00015985,2]
[399277732,1766232644302,-151.0,0.00015985,2]
[399277733,1766232644311,-151.0,0.00015985,2]
[399277734,1766232644320,-151.0,0.00015985,2]
[399277735,1766232644329,-151.0,0.00015985,2]
[399277736,1766232644338,-1214.0,0.00016,2]
[399277737,1766232644347,-2000.0,0.00016001,2]
[399277738,1766232644356,-200.0,0.00016001,2]
[399277739,1766232644366,-200.0,0.00016001,2]
[399277740,1766232644375,-279.77373696,0.00016001,2]
[399277741,1766232644385,-151.0,0.00016001,2]
[399277742,1766232644394,-151.0,0.00016001,2]
[399277743,1766232644403,-350.21228058,0.00016001,2]
[399277744,1766232644412,-500.0,0.00016121,2]
[399277745,1766232644421,-723.0,0.00016125,2]
[399277746,1766232644430,-177.408,0.00016146,2]
[399277747,1766232644439,-150.0,0.00016146,2]
[399277748,1766232644448,-150.0,0.00016146,2]
[399277749,1766232644457,-150.0,0.00016146,2]
[399277750,1766232644466,-150.0,0.00016146,2]
[399277751,1766232644475,-150.144,0.00016146,2]
[399277752,1766232644485,-1780.222,0.00016146,2]
[399277753,1766232644494,-1647.057,0.00016146,2]
[399277754,1766232644503,-1332.562,0.00016146,2]
[399277755,1766232644513,-615.844,0.00016146,2]
[399277756,1766232644525,-4845.428,0.00016146,2]
[399277757,1766232644534,-2428.0,0.00016146,2]
[399277758,1766232644543,-6528.0,0.00016146,2]
[399277759,1766232644552,-1258.91027464,0.00016161,2]
[399277760,1766232644562,-200.0,0.00016161,2]
[399277761,1766232644571,-200.0,0.00016161,2]
[399277762,1766232644581,-160.47,0.00016169,2]
[399277763,1766232644590,-723.0,0.00016197,2]
[399277764,1766232644601,-723.0,0.00016224,2]
[399277765,1766232644610,-595.37131296,0.0001623,2]
[399277766,1766232644619,-204.21678217,0.0001623,2]
[399277767,1766232644628,-723.0,0.00016239,2]
[399277768,1766232644638,-26784.72570515,0.00016299,2]
[399277769,1766232644647,-200.0,0.00016323,2]
[399277770,1766232644655,-200.0,0.00016323,2]
[399277771,1766232644664,-28983.37288738,0.00016332,2]
[399277772,1766232644674,-500.0,0.00016438,2]
[399277773,1766232644683,-500.0,0.00016438,2]
[399277774,1766232644692,-500.0,0.00016438,2]
[399277775,1766232644701,-500.0,0.00016438,2]
[399277776,1766232644710,-500.0,0.00016438,2]
[399277777,1766232644720,-500.0,0.00016438,2]
[399277778,1766232644729,-500.0,0.00016438,2]
[399277779,1766232644738,-500.0,0.00016438,2]
[399277780,1766232644747,-647.05793592,0.00016438,2]
[399277781,1766232644756,-500.0,0.00016438,2]
[399277782,1766232644765,-500.0,0.00016438,2]
[399277783,1766232644775,-500.0,0.00016438,2]
[399277784,1766232644784,-500.0,0.00016438,2]
[399277785,1766232644793,-500.0,0.00016438,2]
[399277786,1766232644802,-14934.21,0.00016438,2]
[399277787,1766232644812,-235.76832595,0.00016438,2]
[399277788,1766232644821,-151.0,0.00016438,2]
[399277789,1766232644831,-151.0,0.00016438,2]
[399277790,1766232644841,-151.0,0.00016438,2]
[399277791,1766232644850,-151.0,0.00016438,2]
[399277792,1766232644859,-900.0,0.00016438,2]
[399277793,1766232644868,-200.0,0.00016486,2]
[399277794,1766232644879,-200.0,0.00016486,2]
[399277795,1766232644888,-723.0,0.00016494,2]
[399277796,1766232644898,-10097.4,0.00016517,2]
[399277797,1766232644907,-1000.0,0.00016521,2]
[399277798,1766232644917,-691.6701968,0.00016521,2]
[399277799,1766232644926,-12307.0,0.00016567,2]
[399277800,1766232644935,-578.0,0.00016594,2]
[399277801,1766232644944,-723.0,0.00016597,2]
[399277802,1766232644954,-723.0,0.00016602,2]
[399277803,1766232644963,-200.0,0.00016651,2]
[399277804,1766232644972,-200.0,0.00016651,2]
[399277805,1766232644982,-15232.84202752,0.0001666,2]
[399277806,1766232644991,-723.0,0.00016667,2]
[399277807,1766232645000,-1072.74,0.00016691,2]
[399277808,1766232645009,-500.0,0.00016695,2]
[399277809,1766232645018,-167.75,0.00016712,2]
[399277810,1766232645027,-617.40005154,0.00016778,2]
[399277811,1766232645036,-249.0,0.0001681,2]
[399277812,1766232645046,-200.0,0.00016864,2]
[399277813,1766232645055,-578.0,0.00016871,2]
[399277814,1766232645063,-10000.0,0.00016886,2]
[399277815,1766232645073,-286.12837513,0.00016899,2]
[399277816,1766232645082,-28983.37288738,0.000169,2]
[399277817,1766232645091,-181.47081457,0.000169,2]
[399277818,1766232645100,-350.91991956,0.000169,2]
[399277819,1766232645109,-663.27443092,0.000169,2]
[399277820,1766232645118,-578.0,0.00016927,2]
[399277821,1766232645127,-848.0,0.00016948,2]
[399277822,1766232645136,-578.0,0.00016957,2]
[399277823,1766232645146,-500.0,0.00016959,2]
[399277824,1766232645155,-286.1273443,0.0001698,2]
[399277825,1766232645164,-500.0,0.00016986,2]
[399277826,1766232645173,-500.0,0.00016986,2]
[399277827,1766232645183,-500.0,0.00016986,2]
[399277828,1766232645192,-151.0,0.00016986,2]
[399277829,1766232645201,-151.0,0.00016986,2]
[399277830,1766232645211,-151.0,0.00016986,2]
[399277831,1766232645220,-151.0,0.00016986,2]
[399277832,1766232645230,-151.0,0.00016986,2]
[399277833,1766232645239,-151.0,0.00016986,2]
[399277834,1766232645250,-151.0,0.00016986,2]
[399277835,1766232645259,-151.0,0.00016986,2]
[399277836,1766232645270,-151.0,0.00016986,2]
[399277837,1766232645281,-151.0,0.00016986,2]
[399277838,1766232645291,-151.0,0.00016986,2]
[399277839,1766232645302,-263.982921,0.00016986,2]
[399277840,1766232645311,-151.0,0.00016986,2]
[399277841,1766232645321,-151.0,0.00016986,2]
[399277842,1766232645330,-151.0,0.00016986,2]
[399277843,1766232645339,-151.0,0.00016986,2]
[399277844,1766232645348,-206.069565,0.00016986,2]
[399277845,1766232645357,-206.069565,0.00016986,2]
[399277846,1766232645366,-206.069565,0.00016986,2]
[399277847,1766232645376,-206.069565,0.00016986,2]
[399277848,1766232645386,-151.0,0.00016986,2]
[399277849,1766232645396,-194.171323,0.00016986,2]
[399277850,1766232645406,-151.0,0.00016986,2]
[399277851,1766232645415,-151.0,0.00016986,2]
[399277852,1766232645424,-151.0,0.00016986,2]
[399277853,1766232645434,-182.473102,0.00016986,2]
[399277854,1766232645443,-151.0,0.00016986,2]
[399277855,1766232645453,-151.0,0.00016986,2]
[399277856,1766232645462,-163.861933,0.00016986,2]
[399277857,1766232645472,-151.0,0.00016986,2]
[399277858,1766232645482,-334526.45,0.00016986,2]
[399277859,1766232645491,-150.0,0.00016986,2]
[399277860,1766232645501,-578.0,0.00016987,2]
[399277861,1766232645511,-236.05898136,0.00016989,2]
[399277862,1766232645523,-500.0,0.00016989,2]
[399277863,1766232645533,-258.35726114,0.0001699,2]
[399277864,1766232645542,-258.35726114,0.0001699,2]
[399277865,1766232645551,-500.0,0.00016996,2]
[399277866,1766232645560,-500.0,0.00016996,2]
[399277867,1766232645570,-500.0,0.00016999,2]
[399277868,1766232645579,-500.0,0.00016999,2]
[399277869,1766232645589,-630.0,0.00016999,2]
[399277870,1766232645600,-2117870.5799679,0.00017,2]
[399277871,1766232645616,-135401.19997911,0.00017,2]
[399277872,1766232645625,-2573633.19890344,0.00017,2]
[399277873,1766232646628,-5571.72002403,0.000169,2]
[399277874,1766232646708,-1796.0,0.000169,2]
[399277875,1766232686356,298.0,0.000124,5]
[399277876,1766232690105,4444.0,0.00014,3]
[399277877,1766232982716,172.51,0.00010475,2]
[399277878,1766233094392,5000.0,0.00014,3]
[399277880,1766233177744,5000.0,0.00014,3]
[399277882,1766233250209,4617.0,0.00014,3]
[399277883,1766233342027,156.96105716,0.00014,4]
[399277885,1766233658589,221.0,0.000114,5]
[399277899,1766233831639,-402.59124758,0.00011193,2]
[399277903,1766233837533,-415.04152185,0.00011193,2]
[399277904,1766233837548,-22551.84836282,0.00011193,2]
[399277905,1766233837562,-169.13428536,0.00011193,2]
[399277906,1766233837577,-300.0,0.00011226,2]
[399277907,1766233837586,-150.0,0.00011259,2]
[399277908,1766233837595,-2590.567,0.0001126,2]
[399277909,1766233837604,-171.69,0.0001126,2]
[399277910,1766233837613,-195.04076524,0.00011289,2]
[399277911,1766233837622,-230.22359054,0.00011289,2]
[399277912,1766233837632,-500.0,0.00011289,2]
[399277913,1766233837641,-500.0,0.00011289,2]
[399277914,1766233837650,-500.0,0.00011289,2]
[399277915,1766233837659,-500.0,0.00011289,2]
[399277916,1766233837673,-500.0,0.00011289,2]
[399277917,1766233837684,-500.0,0.00011289,2]
[399277918,1766233837694,-500.0,0.00011289,2]
[399277919,1766233837703,-477.58133757,0.00011289,2]
[399277920,1766233837712,-317.73658678,0.00011289,2]
[399277921,1766233837722,-306.13037373,0.00011289,2]
[399277922,1766233837735,-174.03175445,0.00011289,2]
[399277923,1766233837744,-500.0,0.00011289,2]
[399277924,1766233837754,-500.0,0.00011289,2]
[399277925,1766233837763,-500.0,0.00011289,2]
[399277926,1766233837772,-500.0,0.00011289,2]
[399277927,1766233837782,-500.0,0.00011289,2]
[399277928,1766233837791,-500.0,0.00011289,2]
[399277929,1766233837801,-500.0,0.00011289,2]
[399277930,1766233837810,-500.0,0.00011289,2]
[399277931,1766233837819,-500.0,0.00011289,2]
[399277932,1766233837828,-500.0,0.00011289,2]
[399277933,1766233837838,-500.0,0.00011289,2]
[399277934,1766233837847,-500.0,0.00011289,2]
[399277935,1766233837856,-500.0,0.00011289,2]
[399277936,1766233837866,-500.0,0.00011289,2]
[399277937,1766233837875,-500.0,0.00011289,2]
[399277938,1766233837885,-224.54579875,0.00011289,2]
[399277939,1766233837894,-500.0,0.00011289,2]
[399277940,1766233837903,-500.0,0.00011289,2]
[399277941,1766233837913,-500.0,0.00011289,2]
[399277943,1766233837922,-500.0,0.00011289,2]
[399277945,1766233837931,-500.0,0.00011289,2]
[399277947,1766233837941,-500.0,0.00011289,2]
[399277949,1766233837954,-500.0,0.00011289,2]
[399277951,1766233837963,-500.0,0.00011289,2]
[399277952,1766233837973,-500.0,0.00011289,2]
[399277953,1766233837982,-500.0,0.00011289,2]
[399277954,1766233837993,-209935.27091431,0.0001129,2]
[399277955,1766233838005,-1651.53998877,0.0001129,2]
[399277965,1766233840017,-444.22137555,0.00011226,2]
[399277966,1766233840028,-390.4550015,0.00011226,2]
[399277967,1766233840039,-28148.69651039,0.00011226,2]
[399277968,1766233840048,-788413.18909692,0.0001129,2]
[399277969,1766233840057,-262.27,0.00011326,2]
[399277970,1766233840067,-759.5,0.00011389,2]
[399277971,1766233840076,-249.0,0.00011483,2]
[399277972,1766233840084,-500.0,0.00011483,2]
[399277973,1766233840093,-500.0,0.00011483,2]
[399277974,1766233840102,-500.0,0.00011483,2]
[399277975,1766233840120,-500.0,0.00011483,2]
[399277976,1766233840131,-500.0,0.00011483,2]
[399277977,1766233840140,-500.0,0.00011483,2]
[399277978,1766233840149,-500.0,0.00011483,2]
[399277979,1766233840159,-500.0,0.00011483,2]
[399277980,1766233840168,-500.0,0.00011483,2]
[399277981,1766233840178,-500.0,0.00011483,2]
[399277982,1766233840187,-500.0,0.00011483,2]
[399277983,1766233840197,-500.0,0.00011483,2]
[399277984,1766233840206,-500.0,0.00011483,2]
[399277985,1766233840216,-536.41802195,0.00011483,2]
[399277986,1766233840225,-500.0,0.00011483,2]
[399277987,1766233840234,-200.0,0.00011483,2]
[399277988,1766233840243,-500.0,0.00011483,2]
[399277989,1766233840252,-500.0,0.00011483,2]
[399277990,1766233840262,-500.0,0.00011483,2]
[399277991,1766233840271,-500.0,0.00011483,2]
[399277992,1766233840280,-500.0,0.00011483,2]
[399277993,1766233840290,-151.0,0.00011483,2]
[399277994,1766233840299,-151.0,0.00011483,2]
[399277995,1766233840308,-151.0,0.00011483,2]
[399277996,1766233840318,-151.0,0.00011483,2]
[399277997,1766233840327,-151.0,0.00011483,2]
[399277998,1766233840336,-151.0,0.00011483,2]
[399277999,1766233840346,-151.0,0.00011483,2]
[399278000,1766233840355,-151.0,0.00011483,2]
[399278001,1766233840364,-151.0,0.00011483,2]
[399278002,1766233840374,-151.0,0.00011483,2]
[399278003,1766233840383,-200.0,0.00011483,2]
[399278004,1766233840392,-151.0,0.00011483,2]
[399278005,1766233840402,-1000.0,0.0001149,2]
[399278006,1766233840411,-28736.2992,0.0001149,2]
[399278007,1766233840421,-2510.24,0.0001149,2]
[399278008,1766233840430,-499.99,0.0001149,2]
[399278009,1766233840440,-150.99,0.0001149,2]
[399278010,1766233840449,-9999.99,0.0001149,2]
[399278011,1766233840459,-4999.99,0.0001149,2]
[399278012,1766233840468,-150.99,0.00011507,2]
[399278013,1766233840477,-299.99,0.00011507,2]
[399278014,1766233840487,-9999.99,0.00011507,2]
[399278015,1766233840496,-999.99,0.00011507,2]
[399278016,1766233840518,-9999.99,0.00011507,2]
[399278017,1766233840529,-3240.0,0.00011507,2]
[399278018,1766233840540,-759.5,0.00011663,2]
[399278019,1766233840550,-1000.0,0.00011789,2]
[399278020,1766233840560,-1000.0,0.00011789,2]
[399278021,1766233840569,-23369.48113223,0.00011827,2]
[399278022,1766233840579,-759.5,0.00011937,2]
[399278023,1766233840588,-262.27,0.00011956,2]
[399278024,1766233840597,-258.35726114,0.00012128,2]
[399278025,1766233840607,-66863.97,0.00012138,2]
[399278026,1766233840616,-169.13428531,0.00012144,2]
[399278027,1766233840625,-759.5,0.00012211,2]
[399278028,1766233840634,-300.0,0.00012312,2]
[399278029,1766233840643,-300.0,0.00012386,2]
[399278030,1766233840652,-500.0,0.00012426,2]
[399278031,1766233840662,-23369.48113223,0.00012461,2]
[399278032,1766233840671,-759.5,0.00012485,2]
[399278033,1766233840684,-262.27,0.00012585,2]
[399278034,1766233840694,-200.0,0.00012673,2]
[399278035,1766233840703,-759.5,0.00012759,2]
[399278036,1766233840713,-1000.0,0.00012974,2]
[399278037,1766233840722,-53522.98445061,0.0001299,2]
[399278038,1766233840732,-23369.48113223,0.00013095,2]
[399278039,1766233840742,-169.13428531,0.00013095,2]
[399278040,1766233840751,-262.27,0.00013214,2]
[399278041,1766233840761,-2979.14,0.00013369,2]
[399278042,1766233840771,-1500.0,0.00013522,2]
[399278043,1766233840780,-1500.87,0.00013525,2]
[399278044,1766233840791,-500.0,0.00013698,2]
[399278045,1766233840800,-500.0,0.00013698,2]
[399278046,1766233840809,-500.0,0.00013698,2]
[399278048,1766233840819,-500.0,0.00013698,2]
[399278050,1766233840828,-500.0,0.00013698,2]
[399278051,1766233840837,-500.0,0.00013698,2]
[399278052,1766233840847,-500.0,0.00013698,2]
[399278053,1766233840856,-500.0,0.00013698,2]
[399278054,1766233840868,-500.0,0.00013698,2]
[399278055,1766233840878,-500.0,0.00013698,2]
[399278056,1766233840887,-500.0,0.00013698,2]
[399278057,1766233840896,-500.0,0.00013698,2]
[399278058,1766233840906,-500.0,0.00013698,2]
[399278059,1766233840915,-506.44561835,0.00013698,2]
[399278060,1766233840925,-500.0,0.00013698,2]
[399278061,1766233840934,-500.0,0.00013698,2]
[399278062,1766233840944,-260.33789622,0.00013698,2]
[399278063,1766233840958,-500.0,0.00013698,2]
[399278064,1766233840967,-500.0,0.00013698,2]
[399278065,1766233840977,-500.0,0.00013698,2]
[399278066,1766233840987,-500.0,0.00013698,2]
[399278067,1766233840997,-316.06547294,0.00013698,2]
[399278068,1766233841006,-500.0,0.00013698,2]
[399278069,1766233841016,-500.0,0.00013698,2]
[399278070,1766233841026,-500.0,0.00013698,2]
[399278071,1766233841035,-500.0,0.00013698,2]
[399278072,1766233841044,-500.0,0.00013698,2]
[399278073,1766233841053,-500.0,0.00013698,2]
[399278074,1766233841063,-286.12837513,0.00013698,2]
[399278075,1766233841076,-500.0,0.00013698,2]
[399278076,1766233841085,-509.67980687,0.00013698,2]
[399278077,1766233841095,-500.0,0.00013698,2]
[399278078,1766233841105,-500.0,0.00013698,2]
[399278079,1766233841116,-500.0,0.00013698,2]
[399278080,1766233841126,-500.0,0.00013698,2]
[399278081,1766233841135,-491.39149488,0.00013698,2]
[399278082,1766233841145,-500.0,0.00013698,2]
[399278083,1766233841154,-500.0,0.00013698,2]
[399278084,1766233841163,-500.0,0.00013698,2]
[399278085,1766233841172,-500.0,0.00013698,2]
[399278086,1766233841182,-500.0,0.00013698,2]
[399278087,1766233841191,-500.0,0.00013698,2]
[399278088,1766233841200,-500.0,0.00013698,2]
[399278089,1766233841210,-500.0,0.00013698,2]
[399278090,1766233841219,-236.05898136,0.00013698,2]
[399278091,1766233841229,-500.0,0.00013698,2]
[399278092,1766233841240,-500.0,0.00013698,2]
[399278093,1766233841250,-500.0,0.00013698,2]
[399278094,1766233841259,-500.0,0.00013698,2]
[399278095,1766233841268,-500.0,0.00013698,2]
[399278096,1766233841278,-500.0,0.00013698,2]
[399278097,1766233841287,-500.0,0.00013698,2]
[399278098,1766233841297,-500.0,0.00013698,2]
[399278099,1766233841306,-487.49534907,0.00013698,2]
[399278100,1766233841315,-516.71552925,0.00013698,2]
[399278101,1766233841324,-500.0,0.00013698,2]
[399278102,1766233841333,-500.0,0.00013698,2]
[399278103,1766233841343,-500.0,0.00013698,2]
[399278104,1766233841352,-500.0,0.00013698,2]
[399278105,1766233841361,-500.0,0.00013698,2]
[399278106,1766233841371,-500.0,0.00013698,2]
[399278107,1766233841380,-500.0,0.00013698,2]
[399278108,1766233841389,-500.0,0.00013698,2]
[399278109,1766233841399,-500.0,0.00013698,2]
[399278110,1766233841408,-500.0,0.00013698,2]
[399278111,1766233841418,-445.92,0.00013699,2]
[399278112,1766233841428,-200.0,0.00013699,2]
[399278113,1766233841438,-707.69,0.00013699,2]
[399278114,1766233841448,-500.0,0.00013699,2]
[399278115,1766233841460,-500.0,0.00013699,2]
[399278116,1766233841469,-500.0,0.00013699,2]
[399278117,1766233841479,-500.0,0.00013699,2]
[399278118,1766233841488,-500.0,0.00013699,2]
[399278119,1766233841497,-500.0,0.00013699,2]
[399278120,1766233841506,-371.81474559,0.00013699,2]
[399278121,1766233841516,-500.0,0.00013699,2]
[399278122,1766233841525,-420.65228805,0.00013699,2]
[399278123,1766233841534,-23369.48113223,0.00013729,2]
[399278124,1766233841544,-262.27,0.00013843,2]
[399278125,1766233841554,-169.13428531,0.00014047,2]
[399278126,1766233841563,-1501.47727649,0.0001407,2]
[399278127,1766233841572,-186.28,0.00014095,2]
[399278128,1766233841582,-235.28816838,0.00014222,2]
[399278129,1766233841591,-23369.48113223,0.00014364,2]
[399278130,1766233841601,-262.27,0.00014473,2]
[399278131,1766233841610,-500.0,0.00014493,2]
[399278132,1766233841620,-250.0,0.0001479,2]
[399278133,1766233841629,-501.29502757,0.00014951,2]
[399278134,1766233841638,-23369.48113223,0.00014998,2]
[399278135,1766233841648,-169.13428531,0.00014998,2]
[399278136,1766233841658,-262.27,0.00015102,2]
[399278137,1766233841667,-500.0,0.00015196,2]
[399278138,1766233841676,-150.0,0.00015288,2]
[399278139,1766233841686,-9552.16786547,0.00015516,2]
[399278140,1766233841695,-153.78508436,0.00015516,2]
[399278141,1766233841705,-151.0,0.00015516,2]
[399278142,1766233841715,-1000.0,0.00015516,2]
[399278143,1766233841724,-1000.0,0.00015516,2]
[399278144,1766233841734,-574.12855637,0.00015516,2]
[399278145,1766233841744,-500.0,0.00015516,2]
[399278146,1766233841754,-1000.0,0.00015516,2]
[399278147,1766233841763,-500.0,0.00015516,2]
[399278148,1766233841773,-209.40437685,0.00015516,2]
[399278149,1766233841782,-1000.0,0.00015516,2]
[399278150,1766233841792,-500.0,0.00015516,2]
[399278151,1766233841802,-1000.0,0.00015516,2]
[399278152,1766233841813,-1785.47061055,0.00015516,2]
[399278153,1766233841823,-500.0,0.00015516,2]
[399278154,1766233841832,-1000.0,0.00015516,2]
[399278155,1766233841846,-531.95847037,0.00015516,2]
[399278156,1766233841856,-1000.0,0.00015516,2]
[399278157,1766233841865,-970.77463272,0.00015516,2]
[399278158,1766233841875,-500.0,0.00015516,2]
[399278159,1766233841884,-500.0,0.00015516,2]
[399278160,1766233841896,-500.0,0.00015516,2]
[399278161,1766233841906,-500.0,0.00015516,2]
[399278162,1766233841916,-500.0,0.00015516,2]
[399278163,1766233841926,-500.0,0.00015516,2]
[399278164,1766233841937,-500.0,0.00015516,2]
[399278165,1766233841951,-500.0,0.00015516,2]
[399278166,1766233841961,-1000.0,0.00015516,2]
[399278167,1766233841970,-500.0,0.00015516,2]
[399278168,1766233841980,-1000.0,0.00015516,2]
[399278169,1766233841992,-500.0,0.00015516,2]
[399278170,1766233842002,-1000.0,0.00015516,2]
[399278171,1766233842014,-5000.0,0.00015516,2]
[399278172,1766233842024,-300.0,0.00015516,2]
[399278173,1766233842034,-152.47844731,0.00015516,2]
[399278174,1766233842046,-1000.0,0.00015516,2]
[399278175,1766233842055,-500.0,0.00015516,2]
[399278176,1766233842064,-5000.0,0.00015516,2]
[399278177,1766233842073,-1000.0,0.00015516,2]
[399278178,1766233842083,-5000.0,0.00015516,2]
[399278179,1766233842092,-1000.0,0.00015516,2]
[399278180,1766233842103,-5000.0,0.00015516,2]
[399278181,1766233842113,-1000.0,0.00015516,2]
[399278182,1766233842123,-1722.43969839,0.00015516,2]
[399278183,1766233842134,-1000.0,0.00015516,2]
[399278184,1766233842143,-1000.0,0.00015516,2]
[399278185,1766233842152,-267.97401367,0.00015516,2]
[399278186,1766233842162,-620.0,0.00015516,2]
[399278187,1766233842173,-500.0,0.00015516,2]
[399278188,1766233842184,-500.0,0.00015516,2]
[399278189,1766233842193,-500.0,0.00015516,2]
[399278190,1766233842203,-500.0,0.00015516,2]
[399278191,1766233842212,-500.0,0.00015516,2]
[399278192,1766233842221,-500.0,0.00015516,2]
[399278193,1766233842233,-500.0,0.00015516,2]
[399278194,1766233842243,-407.21754602,0.00015516,2]
[399278195,1766233842252,-200.0,0.00015516,2]
[399278196,1766233842262,-207.4,0.00015516,2]
[399278197,1766233842271,-215.0738,0.00015516,2]
[399278198,1766233842280,-223.0315306,0.00015516,2]
[399278199,1766233842290,-231.28369723,0.00015516,2]
[399278200,1766233842299,-239.84119403,0.00015516,2]
[399278201,1766233842309,-248.71531821,0.00015516,2]
[399278202,1766233842320,-257.91778498,0.00015516,2]
[399278203,1766233842330,-267.46074303,0.00015516,2]
[399278204,1766233842339,-277.35679052,0.00015516,2]
[399278205,1766233842349,-9905.5980765,0.00015571,2]
[399278206,1766233842358,-10272.10520533,0.00015626,2]
[399278207,1766233842368,-23369.48113223,0.00015632,2]
[399278208,1766233842377,-10652.17309792,0.00015681,2]
[399278209,1766233842387,-262.27,0.00015731,2]
[399278210,1766233842396,-11046.30350255,0.00015736,2]
[399278211,1766233842405,-659.21,0.00015753,2]
[399278212,1766233842414,-659.21,0.00015753,2]
[399278213,1766233842425,-659.21,0.00015753,2]
[399278215,1766233842435,-659.21,0.00015753,2]
[399278216,1766233842445,-659.21,0.00015753,2]
[399278217,1766233842456,-659.21,0.00015753,2]
[399278218,1766233842466,-4180.81569567,0.00015791,2]
[399278219,1766233842477,-500.0,0.00015928,2]
[399278220,1766233842486,-500.0,0.00015928,2]
[399278221,1766233842495,-500.0,0.00015928,2]
[399278222,1766233842505,-123367.6797018,0.00015929,2]
[399278223,1766233842515,-1000.0,0.00015944,2]
[399278224,1766233842524,-169.13428531,0.00015949,2]
[399278240,1766233842851,-500.0,0.00015973,2]
[399278241,1766233842862,-500.0,0.00015973,2]
[399278242,1766233842872,-162.03877535,0.00015973,2]
[399278243,1766233842882,-500.0,0.00015973,2]
[399278244,1766233842892,-198.63978603,0.00015973,2]
[399278245,1766233842906,-159.43095819,0.00015973,2]
[399278246,1766233842916,-500.0,0.00015973,2]
[399278247,1766233842925,-500.0,0.00015973,2]
[399278248,1766233842935,-500.0,0.00015973,2]
[399278249,1766233842947,-251037.70267655,0.00016,2]
[399278250,1766233842958,-595.37131296,0.00016064,2]
[399278251,1766233842968,-204.21678217,0.00016064,2]
[399278252,1766233842977,-500.0,0.00016145,2]
[399278253,1766233842986,-914.116,0.00016146,2]
[399278254,1766233842996,-1197.752,0.00016146,2]
[399278255,1766233843006,-2428.0,0.00016146,2]